bitfinex/quotes_ETHUSD_20251012
["timestamp","ask_amount","ask_price","bid_price","bid_amount"]
[1760287873830,0.6336,4097.7,4094.5,0.4571]
[1760287874032,0.4459,4098.6,4094.5,0.4571]
[1760287874264,0.4459,4098.6,4093.0,0.1276736]
[1760287874265,2.716936,4098.4,4094.0,0.4571]
[1760287874431,2.3636,4098.3,4094.0,0.4571]
[1760287874632,2.3636,4098.3,4094.2,2.44245195]
[1760287874633,0.4436,4098.3,4094.2,2.44245195]
[1760287874837,0.4436,4098.3,4094.3,0.4571]
[1760287874838,0.6336,4098.2,4094.3,0.4571]
[1760287875031,2.5536,4098.0,4093.3,0.12748241]
[1760287875336,0.6336,4096.0,4093.0,0.1276736]
[1760287875642,2.44036853,4097.8,4093.0,0.1276736]
[1760287875643,0.6336,4095.8,4093.0,0.1276736]
[1760287875835,0.6336,4095.4,4093.0,0.1276736]
[1760287876034,0.6336,4095.2,4094.9,0.002]
[1760287876260,0.6336,4095.0,4093.0,0.1276736]
[1760287876464,0.4405,4094.9,4094.4,0.002]
[1760287876723,0.4405,4095.8,4094.4,0.002]
[1760287876888,0.4405,4095.8,4094.5,2.44226241]
[1760287877169,0.4405,4097.7,4094.4,0.002]
[1760287877379,12.03974554,4100.2,4094.4,0.002]
[1760287877380,0.4405,4095.7,4094.4,0.002]
[1760287877537,0.2171,4096.7,4094.4,0.002]
[1760287877730,0.429,4096.5,4094.4,0.002]
[1760287877941,3.221612,4096.4,4094.4,0.002]
[1760287878146,0.429,4096.5,4094.4,0.002]
[1760287879143,0.429,4097.7,4094.6,0.6336]
[1760287879365,0.429,4098.7,4095.9,1.92]
[1760287879535,0.429,4099.2,4096.0,0.4465]
[1760287879733,0.429,4099.2,4096.2,2.44128704]
[1760287879933,0.429,4099.2,4096.2,0.6336]
[1760287880166,0.429,4099.2,4096.0,0.4465]
[1760287880495,0.429,4099.2,4095.4,0.4465]
[1760287880789,0.429,4099.2,4094.0,0.002]
[1760287880790,4.35973846,4098.8,4094.9,0.976]
[1760287880968,0.6336,4098.6,4094.9,0.976]
[1760287881145,0.6336,4098.4,4094.9,0.976]
[1760287881479,0.1609,4100.7,4094.9,0.976]
[1760287881480,0.38267094,4100.3,4095.1,0.6336]
[1760287881633,0.1609,4100.7,4095.3,2.44182355]
[1760287881634,0.429,4099.2,4095.3,2.44182355]
[1760287881836,0.429,4099.1,4095.8,0.6336]
[1760287882047,0.429,4099.1,4096.0,0.6336]
[1760287882252,0.429,4100.0,4096.8,0.6336]
[1760287882453,0.429,4100.0,4096.1,4.36134664]
[1760287882454,0.429,4100.0,4096.7,0.4465]
[1760287882659,0.429,4099.9,4096.8,1.6096]
[1760287882861,0.429,4100.9,4096.9,0.4465]
[1760287883270,0.2171,4102.5,4097.4,0.6336]
[1760287883271,0.4263,4101.9,4097.4,0.6336]
[1760287883442,0.12759056,4103.5,4099.0,1.92]
[1760287883768,1.27253113,4106.2,4097.5,0.5989]
[1760287883769,0.2165,4104.6,4099.2,4.439746]
[1760287883932,0.4269,4103.9,4099.4,0.6336]
[1760287884130,0.4269,4104.9,4100.0,0.6336]
[1760287884371,0.4269,4104.9,4099.5,0.4465]
[1760287884372,0.4248,4105.5,4102.2,1.92]
[1760287884589,0.4248,4105.9,4102.4,1.92]
[1760287884802,2.672882,4105.7,4102.1,0.976]
[1760287885109,0.4248,4105.6,4103.4,2.43699855]
[1760287885312,0.4248,4105.6,4098.1,1.20568138]
[1760287885547,0.4248,4106.4,4102.4,0.6336]
[1760287885819,0.4248,4107.3,4102.9,0.6336]
[1760287885982,0.4248,4107.3,4103.0,0.4465]
[1760287886187,0.4248,4107.3,4103.7,0.6336]
[1760287886382,0.4222,4108.2,4104.9,0.6336]
[1760287886692,0.4222,4108.2,4105.2,0.6336]
[1760287886893,0.4222,4108.2,4103.7,2.43681971]
[1760287886894,0.4222,4108.2,4105.6,1.92]
[1760287887100,0.4197,4109.0,4105.7,0.4465]
[1760287887401,2.573,4109.7,4107.2,2.43472132]
[1760287887604,0.429,4109.8,4106.6,0.4465]
[1760287887805,0.2148,4110.6,4106.7,0.6336]
[1760287887980,0.2148,4110.6,4105.4,2.60510528]
[1760287887981,0.6416,4110.6,4107.0,0.6336]
[1760287888186,0.4268,4110.6,4107.7,2.43442407]
[1760287888508,0.4247,4111.5,4108.0,1.92]
[1760287888682,0.4247,4111.5,4107.8,0.4465]
[1760287888890,0.4247,4111.5,4109.5,2.43338073]
[1760287889209,0.4247,4111.5,4108.6,0.976]
[1760287889807,0.4247,4111.5,4108.7,2.43385985]
[1760287890102,0.4247,4111.5,4107.6,1.92]
[1760287890103,0.2211,4111.7,4107.7,0.4465]
[1760287890273,0.4207,4111.6,4108.4,0.4465]
[1760287890472,0.4207,4111.6,4108.7,2.43385985]
[1760287890679,0.4207,4111.6,4108.4,0.4465]
[1760287890680,2.343,4111.3,4108.4,0.4465]
[1760287890874,0.4197,4111.2,4108.3,0.4465]
[1760287891197,0.4197,4111.2,4106.6,0.1693]
[1760287891198,4.06144777,4111.1,4107.1,0.976]
[1760287891399,1.27433164,4110.5,4104.9,0.4465]
[1760287891603,2.43387534,4108.7,4105.3,2.43582993]
[1760287891913,0.3686,4108.8,4105.5,2.43575691]
[1760287892089,0.3686,4108.8,4105.4,0.4465]
[1760287892612,0.3686,4108.8,4106.5,2.43510578]
[1760287892795,0.3686,4108.8,4106.9,2.43492317]
[1760287892995,0.3686,4108.8,4105.4,0.4465]
[1760287893202,8.365352,4108.7,4105.4,0.4465]
[1760287893403,0.3686,4108.8,4105.4,0.4465]
[1760287893705,0.3686,4108.8,4105.6,1.92]
[1760287893908,0.6336,4108.7,4105.6,0.6336]
[1760287894199,1.92,4109.6,4105.8,0.6336]
[1760287894399,0.429,4109.7,4106.1,0.6336]
[1760287894586,0.001,4108.8,4106.5,0.6336]
[1760287894786,0.001,4108.8,4106.9,1.92]
[1760287895001,0.001,4108.8,4106.9,0.6336]
[1760287895215,0.001,4108.8,4106.7,0.6336]
[1760287895514,0.001,4108.8,4106.7,2.43504517]
[1760287895834,0.001,4108.8,4108.1,2.43416074]
[1760287895981,0.001,4108.8,4106.9,0.4465]
[1760287895982,0.001,4108.8,4108.7,2.43385985]
[1760287896491,0.001,4108.8,4108.7,3.51395985]
[1760287897028,0.001,4108.8,4108.7,5.43395985]
[1760287898517,0.4263,4112.8,4109.7,2.43326127]
[1760287898691,0.4263,4112.8,4111.3,2.43232067]
[1760287899016,0.4243,4113.7,4111.3,2.43232067]
[1760287899364,1.10225673,4114.7,4110.8,2.43256901]
[1760287899365,0.423,4113.0,4110.8,2.43259141]
[1760287899513,0.423,4113.0,4109.8,0.4465]
[1760287899685,0.423,4113.0,4109.9,0.6336]
[1760287899885,0.2221,4113.8,4109.9,0.6336]
[1760287900192,0.423,4113.5,4109.9,1.92]
[1760287900394,0.423,4113.5,4109.8,1.0801]
[1760287900395,0.6336,4113.4,4109.8,0.4465]
[1760287900716,0.6336,4112.8,4111.3,0.1216]
[1760287900915,0.423,4112.5,4111.3,0.1216]
[1760287901119,0.6336,4112.4,4109.8,0.4465]
[1760287901617,0.6336,4111.6,4108.8,0.4465]
[1760287901816,0.6336,4111.6,4109.3,2.43345947]
[1760287902019,0.6336,4111.6,4109.2,2.433509]
[1760287902219,0.423,4111.7,4108.8,0.4465]
[1760287902518,0.423,4111.7,4108.9,0.6336]
[1760287902816,0.423,4111.7,4108.8,0.4465]
[1760287902817,1.92,4111.6,4108.8,0.4465]
[1760287903003,1.92,4111.6,4109.4,2.43340525]
[1760287903209,0.001,4112.3,4109.5,0.4465]
[1760287903525,0.001,4112.3,4109.9,2.43309252]
[1760287903690,0.001,4112.3,4109.6,0.6336]
[1760287904128,0.001,4112.3,4109.9,1.92]
[1760287904294,0.001,4112.3,4109.8,0.6336]
[1760287904495,0.001,4112.3,4111.7,2.43203649]
[1760287904699,0.001,4112.3,4110.7,0.6336]
[1760287905022,0.001,4112.3,4110.8,0.6336]
[1760287905222,0.001,4112.3,4111.0,0.6336]
[1760287905383,0.001,4112.3,4111.8,2.4320249]
[1760287905583,0.001,4112.3,4111.8,3.0656249]
[1760287905786,0.001,4112.3,4109.2,2.43355924]
[1760287906026,0.001,4112.3,4111.8,2.4320249]
[1760287906332,0.001,4112.3,4111.1,0.442]
[1760287906832,0.001,4112.3,4110.4,0.6336]
[1760287907030,0.001,4112.3,4110.3,0.442]
[1760287907241,0.001,4112.3,4111.6,2.43208838]
[1760287907439,0.001,4112.3,4111.8,2.4320249]
[1760287907607,0.001,4112.3,4111.1,0.6336]
[1760287907807,0.001,4112.3,4111.2,2.43237984]
[1760287908137,0.001,4112.3,4110.8,0.6336]
[1760287908351,0.001,4112.3,4109.9,2.43314637]
[1760287908498,0.001,4112.3,4109.9,0.4595]
[1760287909114,0.001,4112.3,4110.7,2.4326624]
[1760287909421,0.001,4112.3,4110.4,2.43285325]
[1760287909422,0.001,4112.3,4110.4,2.5536]
[1760287909622,0.001,4112.3,4111.8,2.4320249]
[1760287910047,0.001,4112.3,4111.8,3.5251249]
[1760287910257,0.001,4113.3,4111.8,3.5251249]
[1760287910258,0.001,4113.3,4113.2,3.06479712]
[1760287910725,0.4102,4116.1,4113.2,0.4595]
[1760287910926,0.4102,4116.1,4113.4,0.6336]
[1760287911128,0.4102,4116.1,4115.4,0.1208]
[1760287911129,0.531,4116.1,4115.4,0.1208]
[1760287911298,0.1208,4115.5,4114.9,0.1208]
[1760287911502,13.08728646,4115.1,4113.2,2.43119712]
[1760287911742,13.08728646,4115.1,4113.1,0.4595]
[1760287911743,13.08728646,4115.1,4114.9,0.1208]
[1760287911905,1.92,4115.0,4114.9,0.1208]
[1760287912114,0.4619,4115.0,4114.9,0.1208]
[1760287912300,0.4619,4115.0,4112.2,2.43173726]
[1760287912301,0.4619,4115.0,4112.2,0.4595]
[1760287912629,2.5536,4114.6,4112.2,2.89124116]
[1760287912834,0.6336,4114.6,4112.3,2.4317256]
[1760287913128,2.5536,4113.9,4111.6,0.4595]
[1760287913298,2.5536,4113.9,4110.5,0.974]
[1760287913299,0.4591,4113.8,4110.7,0.4595]
[1760287913499,2.5536,4113.6,4111.4,2.43221249]
[1760287913803,0.6336,4113.6,4111.5,2.43220178]
[1760287914004,1.92,4114.0,4111.3,2.43231359]
[1760287914005,1.92,4114.0,4111.3,0.4595]
[1760287914551,1.92,4114.0,4112.5,2.43157895]
[1760287914741,1.0927,4114.7,4112.2,0.4595]
[1760287914742,0.4591,4114.7,4112.2,0.4595]
[1760287915132,0.4591,4114.7,4113.2,2.43119257]
[1760287915334,0.6336,4114.5,4111.2,2.43237984]
[1760287915540,13.08728646,4114.0,4111.1,0.4595]
[1760287915869,0.6336,4113.8,4111.2,2.43237984]
[1760287916022,0.6336,4113.8,4111.6,2.43209633]
[1760287916222,0.4591,4113.7,4111.5,2.43219913]
[1760287916471,0.4591,4113.7,4111.1,0.4595]
[1760287916637,0.6336,4114.5,4111.1,0.4595]
[1760287916837,0.4591,4114.6,4111.1,0.4595]
[1760287916838,2.5536,4114.2,4111.2,2.5536]
[1760287917044,0.6336,4113.8,4111.4,2.43220658]
[1760287917235,1.92,4113.2,4111.1,0.4595]
[1760287917575,1.92,4113.2,4111.2,2.43237984]
[1760287917725,1.92,4114.2,4111.3,0.4595]
[1760287917925,1.92,4114.0,4111.3,0.4595]
[1760287918180,2.43104479,4113.5,4110.7,2.4326757]
[1760287918337,1.0927,4113.4,4110.8,2.43261652]
[1760287918542,1.0927,4113.4,4111.3,2.43227455]
[1760287918739,1.0927,4113.4,4111.5,2.43218959]
[1760287918941,0.6336,4113.0,4110.4,0.4595]
[1760287919143,0.6336,4112.8,4110.4,0.4595]
[1760287919327,0.6336,4112.8,4109.4,0.974]
[1760287919533,13.08728646,4113.0,4109.4,0.974]
[1760287919534,0.6336,4112.6,4109.4,0.974]
[1760287919741,0.6336,4112.0,4109.4,0.974]
[1760287920057,0.4591,4111.9,4109.4,0.974]
[1760287920266,0.6336,4111.8,4109.4,0.974]
[1760287920562,0.6336,4111.8,4108.4,0.1861]
[1760287920563,6.47811,4111.5,4108.4,0.4595]
[1760287920726,0.6336,4111.3,4108.4,0.4595]
[1760287921352,0.4567,4112.2,4108.5,1.92]
[1760287921568,0.4567,4112.2,4108.1,0.1861]
[1760287921569,0.4567,4112.2,4108.7,1.92]
[1760287921869,0.4567,4112.2,4110.6,2.43271794]
[1760287922084,0.4567,4112.2,4109.7,2.43326763]
[1760287922298,13.08728646,4112.9,4112.1,0.1208]
[1760287922299,0.1208,4112.9,4112.1,0.1208]
[1760287922464,13.08728646,4113.0,4112.2,2.43178539]
[1760287922802,0.4624,4112.9,4109.5,0.6336]
[1760287922950,13.08728646,4113.0,4109.5,0.6336]
[1760287922951,0.6336,4112.6,4109.5,0.6336]
[1760287923150,0.6336,4112.6,4109.4,0.4595]
[1760287923151,0.4624,4112.5,4109.6,0.4595]
[1760287923376,4.1657,4112.4,4109.6,0.4595]
[1760287923558,4.1657,4112.4,4109.2,0.6336]
[1760287923559,1.92,4111.6,4109.3,2.43349342]
[1760287923764,1.92,4111.6,4108.9,0.4595]
[1760287923995,0.6336,4111.5,4108.9,0.4595]
[1760287924165,1.92,4110.6,4108.1,0.1861]
[1760287924486,1.92,4110.6,4109.0,2.43364511]
[1760287924700,1.92,4110.6,4109.3,2.43347676]
[1760287924903,2.43167092,4112.4,4108.1,0.1861]
[1760287924904,0.46,4111.7,4108.3,1.92]
[1760287925053,0.46,4111.7,4108.1,0.1861]
[1760287925054,1.92,4112.2,4110.1,2.43297634]
[1760287925249,1.92,4112.2,4109.6,0.6336]
[1760287925454,1.92,4112.2,4109.7,2.43326763]
[1760287925755,1.92,4112.2,4109.6,0.6336]
[1760287925756,1.92,4112.2,4110.4,2.43282673]
[1760287925897,0.4553,4113.2,4110.8,0.6336]
[1760287926095,0.4553,4113.2,4110.6,0.6336]
[1760287926096,13.08728646,4113.9,4111.2,2.43237267]
[1760287926317,0.4553,4113.7,4110.9,1.0931]
[1760287926467,0.4553,4113.7,4111.0,0.4595]
[1760287926662,13.08728646,4113.0,4110.1,0.1683]
[1760287926973,0.4553,4112.9,4110.7,2.4326547]
[1760287927164,0.6336,4112.8,4110.3,0.6336]
[1760287927401,2.3753,4112.9,4110.3,0.6336]
[1760287927704,2.3753,4112.9,4110.2,0.4595]
[1760287927705,0.4553,4112.9,4110.5,4.35279406]
[1760287927906,0.234,4113.6,4110.6,0.4595]
[1760287928075,13.08728646,4112.8,4110.8,2.43258861]
[1760287928275,13.08728646,4112.8,4110.4,2.4328032]
[1760287928276,0.6336,4112.6,4110.4,2.4328032]
[1760287928492,0.6336,4112.6,4110.0,2.43309002]
[1760287928795,1.92,4111.7,4109.8,0.002]
[1760287929296,0.6336,4112.3,4109.8,0.002]
[1760287929297,2.5536,4112.3,4109.8,0.002]
[1760287929513,2.5536,4112.3,4109.9,2.43312011]
[1760287929666,0.6336,4112.4,4110.3,2.43285767]
[1760287929994,1.92,4112.1,4110.0,0.6336]
[1760287930182,0.4553,4112.5,4110.3,0.4595]
[1760287930698,0.4553,4112.5,4110.5,2.43279406]
[1760287931194,0.4553,4112.5,4111.0,2.4324952]
[1760287931494,13.08728646,4112.8,4110.8,0.4595]
[1760287931797,13.08728646,4111.9,4109.9,0.4595]
[1760287932021,13.08728646,4111.9,4109.9,2.43313687]
[1760287932022,1.92,4111.8,4109.9,2.43313687]
[1760287932304,2.43125587,4113.2,4110.1,0.6336]
[1760287932305,0.4553,4113.2,4110.1,0.6336]
[1760287932508,0.4553,4113.2,4112.8,0.1208]
[1760287932692,13.20808646,4113.5,4112.8,0.1208]
[1760287932693,0.4553,4113.1,4112.8,0.1208]
[1760287932878,13.20808646,4113.5,4112.8,0.1208]
[1760287932879,0.4553,4113.0,4112.8,0.1208]
[1760287933069,0.4553,4113.0,4106.3,3.81573045]
[1760287933070,0.4553,4113.0,4108.3,2.43406599]
[1760287933265,0.4553,4113.0,4110.1,2.43298446]
[1760287933266,1.92,4112.1,4110.1,2.43298446]
[1760287933489,1.92,4112.1,4109.3,2.89496152]
[1760287933490,0.4553,4112.0,4109.3,0.4615]
[1760287933699,0.4553,4112.0,4109.9,2.43314922]
[1760287933898,0.4553,4112.0,4109.4,0.6336]
[1760287934084,13.08728646,4112.5,4109.3,0.002]
[1760287934085,1.92,4112.4,4110.1,2.43303082]
[1760287934287,0.4553,4112.3,4109.9,2.43314922]
[1760287934488,0.37318938,4113.2,4110.7,2.4326757]
[1760287934489,0.4553,4113.2,4110.7,2.4326757]
[1760287934689,0.4553,4113.2,4111.7,2.43208303]
[1760287935022,0.4553,4113.2,4110.8,0.4595]
[1760287935303,4.35131566,4113.0,4110.6,2.43273151]
[1760287935521,1.92,4112.3,4109.8,1.922]
[1760287935670,0.4553,4112.9,4110.4,0.6278]
[1760287935869,0.4553,4112.9,4111.1,2.43238891]
[1760287936072,0.4553,4112.9,4110.8,2.43256386]
[1760287936279,0.4553,4112.9,4110.4,0.6278]
[1760287936280,6.84643486,4112.8,4110.4,0.4595]
[1760287936484,1.92,4112.3,4110.4,0.4595]
[1760287936685,1.92,4112.3,4110.9,2.43251369]
[1760287936887,1.92,4112.3,4110.7,2.43261767]
[1760287937120,1.92,4112.3,4110.4,0.4595]
[1760287937421,1.92,4112.3,4109.8,0.002]
[1760287937422,0.6336,4111.7,4109.8,0.002]
[1760287937715,2.5536,4111.6,4109.8,0.002]
[1760287937916,3.51894363,4111.6,4109.8,0.002]
[1760287938088,1.0868,4111.6,4109.8,0.002]
[1760287938294,0.4532,4111.6,4109.9,2.43310399]
[1760287938507,0.4532,4111.6,4109.8,2.43519112]
[1760287938702,0.4532,4111.6,4110.2,2.43291709]
[1760287938918,0.4532,4111.6,4110.1,2.43298616]
[1760287939119,0.4532,4111.6,4110.4,2.43284526]
[1760287939419,0.4532,4111.6,4109.8,0.002]
[1760287939620,0.4532,4111.6,4110.0,2.4330479]
[1760287939807,0.4532,4111.6,4109.8,0.002]
[1760287940006,0.4532,4111.6,4109.8,2.43515918]
[1760287940208,1.92,4111.3,4109.8,0.002]
[1760287940390,0.6336,4111.2,4109.8,0.002]
[1760287940587,1.92,4111.3,4109.8,0.002]
[1760287940788,1.92,4111.3,4109.8,2.43518648]
[1760287940993,1.92,4111.3,4109.8,0.002]
[1760287941423,1.92,4111.3,4110.1,2.43301037]
[1760287941615,1.92,4111.3,4109.8,0.002]
[1760287941812,0.2234,4112.5,4109.8,0.002]
[1760287942008,0.4532,4112.2,4110.5,2.43278923]
[1760287942324,2.43135787,4113.0,4109.8,0.002]
[1760287942325,13.32128646,4113.6,4111.0,2.43244076]
[1760287942621,0.4532,4114.4,4111.6,0.6336]
[1760287942822,0.4532,4114.4,4112.6,2.43150051]
[1760287943024,0.4532,4114.4,4113.8,0.1208]
[1760287943392,0.4532,4114.4,4113.0,2.431295]
[1760287943393,0.4532,4115.3,4113.0,0.4478]
[1760287943723,0.4532,4115.3,4114.8,0.1208]
[1760287944024,13.08728646,4115.6,4113.0,0.4478]
[1760287944025,0.574,4115.2,4114.5,0.1208]
[1760287944223,15.00728646,4114.6,4114.5,0.1208]
[1760287944391,0.1208,4114.9,4114.2,0.1208]
[1760287945107,1.92,4115.3,4112.8,0.4478]
[1760287945108,0.4532,4114.8,4112.8,0.4478]
[1760287945432,0.4532,4114.8,4113.0,2.43128985]
[1760287945612,0.4532,4114.8,4112.8,0.4478]
[1760287945808,0.001,4114.9,4112.8,0.4478]
[1760287946138,0.001,4114.9,4113.4,2.4310559]
[1760287946745,0.001,4114.9,4112.8,0.4478]
[1760287946943,0.001,4114.9,4113.1,0.4478]
[1760287947242,0.001,4114.9,4113.2,2.43119712]
[1760287947547,0.001,4114.9,4114.1,2.43062676]
[1760287947842,0.001,4114.9,4113.4,0.6336]
[1760287948370,0.001,4114.9,4114.7,2.43025983]
[1760287948643,0.001,4114.9,4114.8,2.43025177]
[1760287949310,0.001,4114.9,4114.8,2.87805177]
[1760287950312,0.001,4114.9,4114.8,2.43025177]
[1760287951339,0.001,4114.9,4114.1,0.4469]
[1760287951542,0.001,4114.9,4114.8,2.43025177]
[1760287951740,0.001,4115.4,4114.8,1.92]
[1760287951942,0.001,4115.4,4114.7,0.4469]
[1760287951943,0.001,4115.4,4114.9,0.4469]
[1760287952464,0.001,4115.4,4115.3,3.0635565]
[1760287952960,0.001,4115.4,4115.3,5.4304565]
[1760287953328,1e-08,4116.1,4116.0,3.06314324]
[1760287953746,1e-08,4116.1,4116.0,3.51004324]
[1760287954963,0.001,4117.0,4116.0,3.51004324]
[1760287954964,0.001,4117.0,4116.5,3.06284814]
[1760287955165,0.001,4117.0,4116.9,3.06261212]
[1760287955464,0.3899,4120.4,4117.9,0.6336]
[1760287955758,13.08728646,4120.7,4118.3,0.6336]
[1760287956190,13.08728646,4120.7,4118.9,2.42780417]
[1760287956328,1.92,4120.6,4118.2,0.6336]
[1760287956528,1.92,4120.2,4118.4,0.6336]
[1760287956771,13.08728646,4120.3,4118.4,0.6336]
[1760287956943,13.08728646,4120.3,4118.1,0.1663]
[1760287956944,13.08728646,4120.3,4118.9,2.42779968]
[1760287957260,30.0,4121.2,4119.0,0.4469]
[1760287957561,30.0,4121.2,4118.3,0.4469]
[1760287957562,0.3899,4121.1,4118.3,0.4469]
[1760287957763,13.08728646,4120.6,4118.7,0.6336]
[1760287957934,0.001,4122.6,4120.5,2.42684212]
[1760287958138,0.001,4122.6,4120.6,0.4469]
[1760287958446,0.001,4122.6,4121.1,2.42647888]
[1760287958743,0.001,4122.6,4120.7,0.6336]
[1760287958931,0.001,4122.6,4120.9,0.6336]
[1760287959130,0.001,4122.6,4120.8,0.4469]
[1760287959350,0.001,4122.6,4120.9,0.6336]
[1760287959538,0.001,4122.6,4121.3,0.6336]
[1760287959745,0.001,4122.6,4120.9,0.6336]
[1760287960577,19.097072,4122.3,4115.5,0.99999999]
[1760287960779,1.92,4122.0,4119.6,0.4469]
[1760287961447,4.34602675,4122.0,4119.6,0.4469]
[1760287961648,4.34595809,4122.1,4119.6,0.4469]
[1760287961958,0.3551,4122.2,4119.6,0.4469]
[1760287962165,0.001,4122.6,4119.9,0.4469]
[1760287962360,0.001,4122.6,4120.3,0.6336]
[1760287962560,0.001,4122.6,4120.0,0.6336]
[1760287962871,0.001,4122.6,4120.2,0.6336]
[1760287963685,0.001,4122.6,4120.4,0.6336]
[1760287963882,0.001,4122.6,4120.3,2.87388065]
[1760287963883,0.001,4122.6,4120.3,0.4469]
[1760287964045,0.001,4122.6,4120.6,0.6336]
[1760287964241,0.001,4122.6,4120.7,2.42677195]
[1760287964464,0.001,4122.6,4120.8,0.6336]
[1760287964942,0.001,4122.6,4120.7,0.6336]
[1760287965170,2.42577133,4122.5,4120.7,0.6336]
[1760287965356,2.2751,4122.4,4119.5,0.4469]
[1760287965559,0.001,4122.6,4118.7,0.4469]
[1760287965560,0.6336,4121.9,4118.7,0.4469]
[1760287965764,0.6336,4121.9,4117.7,0.972]
[1760287965765,0.6336,4121.3,4117.9,0.4469]
[1760287965965,2.5536,4121.0,4117.9,0.4469]
[1760287966144,2.5536,4121.0,4117.7,0.972]
[1760287966145,0.6336,4120.5,4117.7,0.972]
[1760287966341,2.42746802,4119.6,4117.7,0.972]
[1760287966575,1.92,4119.5,4117.2,0.4469]
[1760287966772,0.442,4119.7,4117.2,0.4469]
[1760287966960,2.42767859,4119.2,4117.2,0.4469]
[1760287967167,1.92,4119.3,4117.2,0.4469]
[1760287967358,2.42765161,4119.3,4117.2,0.4469]
[1760287967686,10.055893,4119.1,4116.5,0.4383]
[1760287967980,0.439,4119.2,4116.5,0.4383]
[1760287968144,4.34777373,4119.0,4116.5,0.4383]
[1760287968351,2.42832154,4118.1,4116.0,0.1927]
[1760287968570,1.92,4118.5,4115.2,0.631]
[1760287968750,1.92,4118.3,4115.3,1.92]
[1760287968950,10.784581,4118.0,4115.2,0.631]
[1760287969250,2.42885765,4117.2,4115.2,0.4383]
[1760287969447,0.4369,4117.2,4114.5,0.1927]
[1760287969651,4.34889412,4117.1,4114.5,0.631]
[1760287969847,2.42895312,4117.0,4114.6,1.92]
[1760287970053,2.42889543,4117.1,4114.6,2.43036263]
[1760287970461,2.42889543,4117.1,4114.5,0.631]
[1760287970462,1.92,4117.0,4114.7,1.92]
[1760287970671,1.92,4117.0,4115.1,0.6336]
[1760287971060,1.92,4117.0,4115.3,0.6336]
[1760287971687,1.92,4117.0,4114.5,0.1927]
[1760287971688,1.92,4116.9,4114.5,0.1927]
[1760287971853,2.42924424,4116.6,4114.4,0.4383]
[1760287972055,1.92,4117.2,4114.5,0.1927]
[1760287972255,1.92,4117.4,4115.1,2.43001593]
[1760287972556,1.92,4117.2,4114.6,0.4383]
[1760287972758,0.4369,4117.1,4113.8,0.4383]
[1760287972954,4.98271166,4116.8,4113.8,0.4383]
[1760287973184,1.92,4116.4,4113.8,0.4383]
[1760287973554,0.4369,4116.7,4113.8,0.4383]
[1760287973884,0.4369,4116.7,4114.1,1.92]
[1760287974087,0.4369,4116.7,4114.3,0.6336]
[1760287974264,0.4369,4116.7,4115.0,2.4301195]
[1760287974676,4.34860797,4117.6,4115.0,2.4301195]
[1760287974677,0.4369,4117.6,4115.1,0.6336]
[1760287974877,0.4369,4117.6,4115.6,2.42972435]
[1760287975079,0.4369,4117.6,4115.7,2.42971072]
[1760287975280,0.4332,4118.4,4115.6,0.6336]
[1760287975506,6.651366,4118.2,4115.5,0.4383]
[1760287975803,0.232,4118.7,4115.4,1.92]
[1760287975804,4.227834,4117.9,4115.4,2.42984459]
[1760287976008,2.42867294,4117.5,4115.3,0.6336]
[1760287976206,2.3532,4117.4,4116.8,0.1208]
[1760287976407,0.4332,4117.4,4116.8,0.1208]
[1760287976711,1.92,4117.3,4114.9,1.92]
[1760287977014,0.6336,4117.8,4114.7,2.43025692]
[1760287977015,2.42900891,4117.0,4114.7,2.43025692]
[1760287977217,2.42900891,4117.0,4114.7,2.43025317]
[1760287977512,0.6336,4117.6,4114.4,1.92]
[1760287977513,2.42907779,4116.8,4114.4,1.92]
[1760287977712,1.92,4116.7,4114.5,3.06398388]
[1760287978027,2.42930716,4116.4,4113.4,0.972]
[1760287978209,2.4294869,4116.1,4113.7,2.43090162]
[1760287978432,0.4332,4116.3,4114.2,2.43055751]
[1760287978593,0.4332,4116.3,4114.3,2.43053709]
[1760287978982,0.4332,4116.2,4113.6,0.4383]
[1760287979181,0.6336,4116.0,4113.4,0.972]
[1760287979420,0.6336,4116.0,4112.6,0.1927]
[1760287979421,0.6336,4115.5,4112.7,0.4383]
[1760287979622,0.6336,4115.3,4112.7,0.4383]
[1760287979919,2.5536,4115.3,4113.2,2.43114241]
[1760287980083,1.92,4115.6,4112.7,0.4383]
[1760287980084,0.4311,4115.2,4112.7,0.4383]
[1760287980713,0.4311,4115.2,4112.4,2.43166799]
[1760287980714,1.92,4114.5,4112.4,2.43166799]
[1760287980931,0.4311,4114.4,4111.5,0.4383]
[1760287981386,0.4311,4114.6,4111.7,0.6336]
[1760287981576,0.4311,4115.3,4113.2,2.43114872]
[1760287981779,0.4311,4115.3,4113.0,2.43130937]
[1760287981780,0.4311,4115.2,4112.4,0.4383]
[1760287981980,0.4311,4115.2,4112.8,0.6336]
[1760287982205,0.4311,4115.2,4113.6,2.43094321]
[1760287982410,0.4311,4115.2,4113.0,2.43131534]
[1760287982608,3.29143036,4115.9,4112.1,0.4383]
[1760287982609,0.6336,4115.0,4112.1,0.4383]
[1760287982807,0.4311,4114.9,4112.9,2.43136605]
[1760287983028,0.4311,4114.9,4113.2,2.43114908]
[1760287983234,0.4311,4114.9,4112.7,2.43144421]
[1760287983429,0.4311,4114.9,4113.1,2.43123658]
[1760287983643,0.4311,4114.9,4112.1,1.0719]